bitfinex/quotes_ETHUSD_20241207
["timestamp","ask_amount","ask_price","bid_price","bid_amount"]
[1733566221534,1.0514854,3985.8,3985.7,1.75627]
[1733566221735,2.35548731,3985.8,3985.7,1.96011479]
[1733566221899,1.30400191,3985.8,3985.7,1.96011479]
[1733566222424,1.0514854,3986.0,3985.9,1.75619]
[1733566222595,1.0514854,3986.2,3985.9,0.12544307]
[1733566222795,1.0514854,3986.2,3986.0,1.95995479]
[1733566222997,1.0514854,3986.2,3986.1,0.20384479]
[1733566223196,2.35530447,3986.2,3986.1,0.20384479]
[1733566223636,2.35437145,3986.2,3986.1,0.20384479]
[1733566224247,1.30381907,3986.2,3986.1,0.20384479]
[1733566224537,1.05055238,3986.3,3986.1,0.20384479]
[1733566224834,1.05055238,3986.4,3986.2,0.20384479]
[1733566225142,1.30246271,3986.3,3985.9,1.75617]
[1733566225441,1.05055238,3986.4,3986.0,0.20381523]
[1733566225638,1.05055238,3986.4,3985.9,1.75617]
[1733566225639,1.30209721,3986.3,3986.1,0.20381523]
[1733566225933,1.05055238,3986.4,3986.2,0.20381523]
[1733566226133,1.30208284,3986.3,3985.9,1.75617]
[1733566226323,1.05055238,3986.4,3985.9,1.75617]
[1733566226324,1.05055238,3986.4,3986.0,0.20382069]
[1733566226522,1.05055238,3986.4,3986.1,0.20382069]
[1733566226736,1.05055238,3986.4,3986.2,0.20382069]
[1733566226946,1.05055238,3986.4,3986.3,0.20382069]
[1733566227234,1.30115987,3986.4,3986.3,0.20382069]
[1733566227438,2.35171225,3986.4,3986.3,0.20382069]
[1733566227599,2.35171225,3986.4,3986.3,0.07839257]
[1733566227804,1.34626235,3986.4,3986.3,0.20382182]
[1733566228213,1.34626235,3986.4,3986.3,0.07839257]
[1733566229602,0.04510248,3986.4,3986.3,0.07839257]
[1733566230252,1.05055238,3986.6,3986.3,0.07839257]
[1733566230416,0.04507896,3986.5,3986.4,0.07839257]
[1733566230617,0.91200617,3986.5,3986.4,0.07839257]
[1733566230818,0.04507896,3986.5,3986.4,0.07839257]
[1733566231031,1.18199816,3986.7,3986.4,0.203817]
[1733566231248,1.18199816,3986.7,3986.6,1.75588]
[1733566231519,1.18199816,3986.7,3986.6,1.959697]
[1733566232929,1.05055238,3987.4,3986.6,0.50860111]
[1733566233257,0.03135146,3987.3,3986.9,1.08814413]
[1733566233462,1.29959351,3987.5,3987.0,0.07839257]
[1733566233629,2.58097,3987.3,3987.1,0.07839257]
[1733566233828,0.8254,3987.1,3986.1,2.84421413]
[1733566234045,0.8254,3987.0,3986.2,0.20378525]
[1733566234219,0.0953011,3986.9,3986.3,0.20378525]
[1733566234417,0.0953011,3986.9,3986.4,0.20378525]
[1733566234639,0.0953011,3986.9,3986.5,0.07837894]
[1733566234849,0.0953011,3986.9,3986.1,2.84421413]
[1733566234850,0.0953011,3986.9,3986.6,0.07837894]
[1733566235029,0.82918093,3986.9,3986.7,0.07837894]
[1733566235229,0.82918093,3986.9,3986.2,0.20379796]
[1733566235436,0.82918093,3986.9,3986.3,0.20380813]
[1733566235757,0.82918093,3986.9,3986.1,2.84421413]
[1733566235758,0.82918093,3986.9,3986.4,0.20380703]
[1733566235961,0.82918093,3986.9,3986.5,0.07838774]
[1733566235962,0.86605607,3986.8,3986.5,0.07838774]
[1733566236258,0.813,3986.6,3985.9,1.75618]
[1733566236555,0.813,3986.6,3986.0,0.20381853]
[1733566236862,0.813,3986.6,3985.9,1.75618]
[1733566236863,0.09525014,3986.5,3986.1,0.20381853]
[1733566237057,0.09525014,3986.5,3986.2,0.07839174]
[1733566237353,0.09525014,3986.5,3986.3,0.07839174]
[1733566237519,0.09525014,3986.5,3986.4,0.07839174]
[1733566243251,0.36462869,3986.5,3986.4,0.07839174]
[1733566245235,0.36462869,3986.5,3986.4,0.20381615]
[1733566246266,0.36462869,3986.5,3986.4,0.07839174]
[1733566246453,2.98640164,3986.5,3986.4,0.07839174]
[1733566246969,6.13712811,3986.5,3986.4,0.07839174]
[1733566247468,5.08657573,3986.5,3986.4,0.07839174]
[1733566247678,5.08666661,3986.5,3986.4,0.07839174]
[1733566249639,3.33074661,3986.5,3986.4,0.07839174]
[1733566249836,4.38129899,3986.5,3986.4,0.07839174]
[1733566251568,1.756,3986.4,3985.5,1.08814413]
[1733566251871,4.68473807,3986.3,3985.6,0.12543483]
[1733566252033,0.86600417,3986.2,3985.7,0.12543483]
[1733566252233,0.0946818,3986.1,3985.8,0.12543483]
[1733566252478,0.66905861,3986.3,3985.4,1.08814413]
[1733566252479,0.66905861,3986.3,3985.4,2.84453413]
[1733566252678,0.96069337,3986.2,3985.4,2.84453413]
[1733566252881,0.09456454,3986.2,3985.4,2.84453413]
[1733566253582,1.04732765,3986.3,3985.4,2.84453413]
[1733566253748,0.09456454,3986.1,3985.4,2.84453413]
[1733566254077,0.09456454,3986.0,3985.4,2.84453413]
[1733566254285,1.04732765,3986.3,3985.4,2.84453413]
[1733566254440,0.09456454,3985.9,3985.4,2.84453413]
[1733566254643,1.04732765,3986.3,3985.4,2.84453413]
[1733566254864,2.26066575,3986.2,3985.4,2.84453413]
[1733566255079,0.09456454,3986.2,3985.5,1.75635]
[1733566255280,0.86644013,3986.1,3985.5,1.75635]
[1733566255445,1.04732765,3986.3,3985.5,1.75635]
[1733566255646,2.26105687,3986.2,3985.5,1.75635]
[1733566255882,0.86659693,3986.1,3985.5,1.75635]
[1733566256046,0.09456454,3986.2,3985.5,1.75635]
[1733566256380,0.86659649,3986.1,3985.7,1.08814413]
[1733566256579,0.09456454,3986.2,3985.8,1.75619]
[1733566256766,0.0945332,3986.0,3985.8,1.75619]
[1733566257083,0.0945332,3985.9,3985.8,1.75619]
[1733566257379,1.04732765,3986.6,3986.1,1.7561]
[1733566257684,1.04732765,3986.7,3986.3,1.08814413]
[1733566257884,2.16748793,3986.6,3986.3,1.08814413]
[1733566258177,1.04732765,3986.7,3986.3,1.08814413]
[1733566258178,0.86698554,3986.5,3986.3,1.08814413]
[1733566258478,1.04732765,3986.6,3986.3,1.08814413]
[1733566258701,0.86713853,3986.5,3986.3,1.08814413]
[1733566258846,1.04732765,3986.7,3986.3,1.08814413]
[1733566259184,2.16789487,3986.6,3986.3,1.08814413]
[1733566259356,0.86715795,3986.5,3986.3,1.08814413]
[1733566259555,1.04732765,3986.6,3986.3,1.08814413]
[1733566259871,0.86732089,3986.5,3986.3,1.08814413]
[1733566260070,1.04732765,3986.6,3986.3,1.08814413]
[1733566260276,2.16867386,3986.5,3986.1,1.7561]
[1733566260479,0.86731202,3986.4,3986.1,1.7561]
[1733566260792,1.04732765,3986.5,3986.0,1.08814413]
[1733566260959,2.16877873,3986.4,3986.0,1.08814413]
[1733566261293,1.04732765,3986.5,3986.0,1.08814413]
[1733566261463,2.16957131,3986.4,3986.0,1.08814413]
[1733566261669,1.04732765,3986.6,3986.2,1.75605]
[1733566261864,2.169677,3986.5,3986.2,1.75605]
[1733566262180,0.8678708,3986.4,3986.2,1.75605]
[1733566262374,1.04732765,3986.6,3986.2,1.75605]
[1733566262704,3.21734312,3986.5,3986.2,1.75605]
[1733566262859,2.16999627,3986.4,3986.2,1.75605]
[1733566263058,1.04732765,3986.5,3986.2,1.75605]
[1733566263387,1.73595171,3986.8,3986.2,1.75605]
[1733566263388,3.21724128,3986.4,3986.2,1.75605]
[1733566263595,0.86796545,3986.3,3986.2,1.75605]
[1733566263755,0.86796545,3986.3,3986.2,1.83443808]
[1733566263953,1.04732765,3986.6,3986.2,1.83443808]
[1733566264153,2.17028945,3986.5,3986.3,0.07838808]
[1733566264455,2.17028945,3986.5,3986.2,1.75605]
[1733566264456,0.86811578,3986.4,3986.2,1.75605]
[1733566264676,1.04732765,3986.6,3986.3,0.07838445]
[1733566264876,3.31191119,3986.5,3986.4,0.07838445]
[1733566266988,3.88046997,3986.5,3986.4,0.07838445]
[1733566267161,2.83314232,3986.5,3986.4,0.07838445]
[1733566268375,2.26458354,3986.5,3986.4,0.07838445]
[1733566268800,2.26458354,3986.5,3986.1,1.7561]
[1733566269026,0.09468997,3986.5,3986.4,0.07838637]
[1733566269300,2.264313,3986.5,3986.4,0.07838637]
[1733566272145,2.264313,3986.5,3986.4,0.07838608]
[1733566273809,3.3136099,3986.5,3986.4,0.07838608]
[1733566275413,3.31360282,3986.5,3986.4,0.07838608]
[1733566276121,2.29567117,3986.5,3986.4,0.07838608]
[1733566276321,2.94027394,3986.5,3986.4,0.07838608]
[1733566276644,4.51275058,3986.5,3986.4,0.07838608]
[1733566276851,2.94027394,3986.5,3986.4,0.07838608]
[1733566277409,4.51275058,3986.5,3986.4,0.07838608]
[1733566277726,4.51275058,3986.5,3985.9,1.68348808]
[1733566278037,3.21898916,3986.4,3985.9,1.68348808]
[1733566278233,3.21898916,3986.3,3985.9,1.68348808]
[1733566278431,2.16962303,3986.2,3985.9,1.53241008]
[1733566278640,1.14407177,3986.3,3985.9,1.53241008]
[1733566278841,2.16949936,3986.2,3985.9,1.53241008]
[1733566279011,0.09470564,3986.2,3985.7,3.84830313]
[1733566279238,0.09470564,3986.2,3985.8,1.75621]
[1733566279437,0.86801384,3986.1,3985.8,1.75621]
[1733566279687,1.04936613,3986.3,3985.8,1.75621]
[1733566279845,0.09470564,3986.0,3985.8,1.75621]
[1733566280040,1.04936613,3986.2,3985.6,1.75632]
[1733566280263,0.09470564,3985.9,3985.6,1.75632]
[1733566280462,3.21936091,3986.1,3985.6,1.75632]
[1733566280463,1.04936613,3986.1,3985.6,1.75632]
[1733566280672,2.16996088,3986.0,3985.6,1.75632]
[1733566280879,0.86797431,3985.9,3985.6,1.75632]
[1733566281085,0.0946547,3985.9,3985.7,1.75624]
[1733566281469,1.04936613,3986.1,3985.7,1.75624]
[1733566281637,0.0946547,3985.8,3985.7,1.75624]
[1733566282273,1.04936613,3986.1,3985.7,1.75624]
[1733566282472,0.0946547,3985.8,3985.7,1.75624]
[1733566282679,1.04936613,3986.1,3985.7,1.75624]
[1733566282899,0.0946547,3985.8,3985.7,1.75624]
[1733566283037,1.04936613,3986.1,3985.8,1.75622]
[1733566283240,2.17071512,3986.0,3985.8,2.84436413]
[1733566283442,1.04936613,3986.1,3985.9,1.75614]
[1733566283639,0.86829999,3986.0,3985.9,1.75614]
[1733566283872,0.86829999,3986.0,3985.9,2.04056841]
[1733566284080,1.04936613,3986.2,3986.1,1.7561]
[1733566284306,3.22014638,3986.2,3986.1,2.84424413]
[1733566284987,2.17078025,3986.2,3986.1,2.84424413]
[1733566285187,3.22014638,3986.2,3986.1,2.84424413]
[1733566285361,2.17078025,3986.2,3986.1,2.84424413]
[1733566285782,1.04936613,3986.3,3986.1,2.84424413]
[1733566286012,2.17046187,3986.2,3986.1,2.84424413]
[1733566287469,1.04936613,3986.4,3986.3,1.75601]
[1733566287683,2.17039493,3986.4,3986.3,1.75601]
[1733566289696,0.86815797,3986.4,3986.3,1.75601]
[1733566289895,2.17032572,3986.4,3986.3,1.83439364]
[1733566290370,0.86815797,3986.4,3986.3,1.83439364]
[1733566290570,2.17026886,3986.4,3986.3,1.83439364]
[1733566290794,1.04936613,3986.5,3986.4,1.75597]
[1733566291004,3.21950771,3986.5,3986.4,0.07838364]
[1733566292076,2.17014158,3986.5,3986.4,0.07838364]
[1733566292704,2.17014158,3986.5,3986.3,1.75601]
[1733566292705,3.21986219,3986.5,3986.3,1.75601]
[1733566292935,2.17014158,3986.4,3986.3,2.04042541]
[1733566293265,2.17014158,3986.4,3986.3,2.11880937]
[1733566293266,2.17010447,3986.4,3986.3,2.11880937]
[1733566293571,0.86805663,3986.4,3986.3,2.11880937]
[1733566293769,1.04972061,3986.6,3986.4,1.75593]
[1733566293965,0.86806232,3986.5,3986.4,2.84407413]
[1733566294261,0.86806232,3986.5,3986.4,2.92245477]
[1733566294504,0.95960344,3986.5,3986.4,2.92245477]
[1733566295300,0.95960344,3986.5,3986.4,1.83431064]
[1733566295502,2.26160763,3986.5,3986.4,0.07838064]
[1733566295665,0.09154112,3986.5,3986.4,0.07838064]
[1733566295868,3.31123394,3986.5,3986.4,0.07838064]
[1733566296184,2.26151333,3986.5,3986.4,0.07838064]
[1733566296383,3.31123394,3986.5,3986.4,0.07838064]
[1733566297609,2.26151333,3986.5,3986.4,0.07838064]
[1733566297813,2.93448413,3986.5,3986.4,0.07838064]
[1733566299109,5.33756077,3986.5,3986.4,0.07838064]
[1733566299486,7.59154737,3986.5,3986.4,0.07838064]
[1733566300311,5.50128578,3986.5,3986.4,0.07838064]
[1733566303156,5.50128578,3986.5,3986.4,0.07839206]
[1733566304637,7.60126876,3986.5,3986.4,0.07839206]
[1733566307007,5.50128578,3986.5,3986.4,0.07839206]
[1733566307233,7.60065375,3986.5,3986.4,0.07839206]
[1733566309859,7.60065375,3986.5,3985.8,1.08814413]
[1733566310060,3.69447989,3986.5,3986.4,0.07839188]
[1733566310274,7.59908654,3986.5,3986.4,0.07839188]
[1733566313477,7.59908654,3986.5,3985.8,2.84437413]
[1733566313688,1.04934368,3986.1,3985.9,0.07839242]
[1733566313864,2.16919013,3986.0,3985.8,2.84437413]
[1733566314196,0.86767605,3985.9,3985.8,2.84437413]
[1733566314495,0.86767605,3985.9,3985.8,2.9227664]
[1733566314792,0.95756647,3985.9,3985.8,2.9227664]
[1733566315652,0.95743094,3985.9,3985.8,2.9227664]
[1733566315855,0.08989042,3985.9,3985.8,2.9227664]
[1733566316161,0.86744749,3985.9,3985.8,2.9227664]
[1733566316372,0.95733791,3985.9,3985.8,2.9227664]
[1733566316772,0.95733791,3985.9,3985.8,2.84437413]
[1733566317099,0.95733791,3985.9,3985.8,2.92276737]
[1733566317292,0.95722717,3985.9,3985.8,2.92276737]
[1733566320597,0.95758502,3985.9,3985.8,2.92276737]
[1733566322581,0.95758502,3985.9,3985.8,0.07839324]
[1733566322775,2.25904141,3985.9,3985.8,0.07839324]
[1733566322987,0.95758502,3985.9,3985.8,0.07839324]
[1733566323673,1.98321399,3985.9,3985.8,0.07839324]
[1733566323872,4.33407998,3985.9,3985.8,0.07839324]
[1733566324283,3.28460547,3985.9,3985.8,0.07839324]
[1733566325301,4.33383007,3985.9,3985.8,0.07839324]
[1733566325795,3.28460547,3985.9,3985.8,0.07839324]
[1733566326509,4.33361944,3985.9,3985.8,0.07839324]
[1733566327159,4.12979047,3985.9,3985.8,0.07839324]
[1733566328614,3.30799047,3985.9,3985.8,0.07839324]
[1733566329182,3.30704257,3985.9,3985.8,0.07839324]
[1733566329686,3.30704257,3985.9,3985.8,0.07839817]
[1733566332884,3.30704257,3985.9,3985.6,1.08814413]
[1733566333084,1.13890439,3985.9,3985.7,0.07839942]
[1733566333400,0.86710112,3985.8,3985.6,1.08814413]
[1733566333608,1.13890439,3985.9,3985.7,0.07839913]
[1733566333818,1.13890439,3985.9,3985.6,1.08814413]
[1733566333819,0.08990217,3985.7,3985.6,1.08814413]
[1733566334133,1.04901397,3985.9,3985.6,1.16654349]
[1733566334426,0.86710417,3985.8,3985.7,0.07840071]
[1733566334629,0.95700634,3985.8,3985.7,0.07840071]
[1733566337203,0.95700634,3985.8,3985.6,1.01546684]
[1733566337404,0.08990217,3985.8,3985.6,1.01546684]
[1733566337825,0.08990217,3985.8,3985.6,0.86438884]
[1733566341332,0.86751636,3985.7,3985.6,0.86438884]
[1733566341643,0.95734796,3985.7,3985.6,0.86438884]
[1733566343131,0.95734796,3985.7,3985.4,1.75641]
[1733566343438,0.0898316,3985.7,3985.4,1.08814413]
[1733566343738,1.04901397,3985.8,3985.4,1.08814413]
[1733566343935,0.86767721,3985.7,3985.4,1.08814413]
[1733566344144,0.0898316,3985.7,3985.0,1.0517671]
[1733566344350,2.16916771,3985.6,3985.2,1.08814413]
[1733566344516,0.86764692,3985.5,3985.2,1.08814413]
[1733566344712,0.0898316,3985.4,3985.2,1.08814413]
[1733566344934,1.87671397,3985.7,3985.2,2.84463413]
[1733566345239,2.25899567,3985.6,3985.2,2.84463413]
[1733566345404,0.86766563,3985.5,3985.2,2.84463413]
[1733566345599,1.04901397,3985.6,3985.2,1.08814413]
[1733566345805,0.0898316,3985.4,3985.2,1.08814413]
[1733566346005,1.04901397,3985.6,3985.2,1.08814413]
[1733566346200,0.0898316,3985.3,3985.2,1.08814413]
[1733566346708,1.04901397,3985.6,3985.2,1.08814413]
[1733566346908,0.95724289,3985.5,3985.2,1.08814413]
[1733566347110,0.0898316,3985.5,3985.2,1.08814413]
[1733566347742,0.0898316,3985.5,3985.2,2.84463413]
[1733566347934,0.0898316,3985.5,3985.2,3.1433869]
[1733566350422,1.04901397,3985.7,3985.2,3.1433869]
[1733566350638,0.0898316,3985.4,3985.2,2.84463413]
[1733566350846,1.04901397,3985.7,3985.3,0.07840415]
[1733566351052,3.21707532,3985.6,3985.4,0.07840415]
[1733566351254,0.86722454,3985.5,3985.2,2.84463413]
[1733566351425,1.04901397,3985.6,3985.2,2.84463413]
[1733566351631,0.8671985,3985.5,3985.3,0.07840418]
[1733566351837,1.04901397,3985.6,3985.4,0.07840418]
[1733566352156,0.8672122,3985.5,3985.2,2.84463413]
[1733566352450,1.04901397,3985.6,3985.3,0.07840411]
[1733566352656,0.86717498,3985.5,3985.4,0.07840411]
[1733566354461,0.95687132,3985.5,3985.4,0.07840411]
[1733566355320,0.95687132,3985.5,3985.3,1.75645]
[1733566355521,0.0896944,3985.5,3985.4,0.07840433]
[1733566355722,0.95687811,3985.5,3985.4,0.07840433]
[1733566359054,2.25763241,3985.5,3985.4,0.07840433]
[1733566359257,2.25761778,3985.5,3985.4,0.07840433]
[1733566361265,0.95686375,3985.5,3985.4,0.07840433]
[1733566362648,0.95686375,3985.5,3985.4,0.07840399]
[1733566364259,0.95698829,3985.5,3985.4,0.07840399]
[1733566365361,2.25804185,3985.5,3985.4,0.07840399]
[1733566369291,2.25848053,3985.5,3985.4,0.07840399]
[1733566369713,2.25848053,3985.5,3985.4,0.07840412]
[1733566374732,2.25848053,3985.5,3985.3,1.68376612]
[1733566375042,0.0896944,3985.5,3985.3,1.68376612]
[1733566375633,0.86741899,3985.4,3985.3,1.68376612]
[1733566375939,0.95513538,3985.4,3985.3,1.68376612]
[1733566376437,0.95513538,3985.4,3985.2,1.08814413]
[1733566376642,0.08771639,3985.4,3985.2,1.08814413]
[1733566376845,1.04901397,3985.6,3985.2,1.08814413]
[1733566377060,0.08771639,3985.3,3985.2,1.08814413]
[1733566377205,1.04901397,3985.6,3985.2,2.84463413]
[1733566377536,0.08771639,3985.3,3985.2,2.84463413]
[1733566377735,1.04901397,3985.6,3985.2,2.84463413]
[1733566377943,0.08771639,3985.3,3985.2,2.84463413]
[1733566378139,1.04901397,3985.6,3985.2,2.84463413]
[1733566378336,0.08771639,3985.3,3985.2,2.84463413]
[1733566378535,1.04901397,3985.6,3985.2,2.84463413]
[1733566378744,0.08771639,3985.3,3985.2,2.84463413]
[1733566378951,1.04901397,3985.6,3985.2,2.84463413]
[1733566379238,2.16888156,3985.5,3985.2,2.84463413]
[1733566379449,0.86755262,3985.4,3985.2,2.84463413]
[1733566379611,1.04901397,3985.6,3985.2,2.84463413]
[1733566379941,0.08771639,3985.3,3985.2,2.84463413]
[1733566380141,1.04901397,3985.6,3985.2,2.84463413]
[1733566380309,0.08771639,3985.3,3985.2,2.84463413]
[1733566380509,1.04901397,3985.6,3985.2,2.84463413]
[1733566380738,0.08771639,3985.3,3985.2,2.84463413]
[1733566380939,1.04901397,3985.6,3985.2,2.84463413]
[1733566381144,0.08771639,3985.3,3985.2,2.84463413]
[1733566381346,1.04901397,3985.6,3985.2,2.84463413]
[1733566381655,2.1691702,3985.5,3985.2,2.84463413]
[1733566381950,0.86766808,3985.4,3985.2,2.84463413]
[1733566382159,1.13673036,3985.5,3985.2,2.84463413]
[1733566382353,0.86770389,3985.4,3985.2,2.84463413]
[1733566382657,0.08771639,3985.4,3985.2,2.84463413]
[1733566384224,0.86804315,3985.3,3985.2,2.84463413]
[1733566384636,0.95575954,3985.3,3985.2,2.84463413]
[1733566385045,0.08771639,3985.3,3985.2,2.84463413]
[1733566385242,0.86781747,3985.3,3985.2,2.84463413]
[1733566385418,0.95553386,3985.3,3985.2,2.84463413]
[1733566387665,0.9555476,3985.3,3985.2,2.92303879]
[1733566388224,2.25749486,3985.3,3985.2,2.92303879]
[1733566391477,0.9555476,3985.3,3985.2,2.92303879]
[1733566392471,0.9555476,3985.3,3985.2,3.49617938]
[1733566392671,0.08771639,3985.3,3985.2,3.49617938]
[1733566392973,1.04901397,3985.5,3985.3,1.75641]
[1733566393268,2.1702658,3985.4,3985.3,1.75641]
[1733566393471,2.1702658,3985.4,3985.3,1.83481347]
[1733566393472,0.86810632,3985.4,3985.3,1.83481347]
[1733566393631,0.86810632,3985.4,3985.3,2.46525501]
[1733566394247,2.1702267,3985.4,3985.3,2.46525501]
[1733566396652,0.86810632,3985.4,3985.3,2.46525501]
[1733566397771,2.17020572,3985.4,3985.3,2.46525501]
[1733566398272,0.86810632,3985.4,3985.3,2.46525501]
[1733566399370,0.9554268,3985.4,3985.3,1.83481348]
[1733566400593,0.9554268,3985.4,3985.3,1.75641]
[1733566400877,0.9554268,3985.4,3985.3,1.83481348]
[1733566402684,0.95523598,3985.4,3985.3,1.83481348]
[1733566407499,1.74383598,3985.4,3985.3,0.07840348]
[1733566407709,4.45233558,3985.4,3985.3,0.07840348]
[1733566408666,5.13851025,3985.4,3985.3,0.07840348]
[1733566410701,7.23787822,3985.4,3985.3,0.07840348]
[1733566411416,7.23787822,3985.4,3985.3,0.07841757]
[1733566412620,7.23523269,3985.4,3985.3,0.07841757]
[1733566413478,5.13586472,3985.4,3985.3,0.07841757]
[1733566415518,4.97193913,3985.4,3985.3,0.07841757]
[1733566416324,5.13279729,3985.4,3985.3,0.07841757]
[1733566416480,4.97153684,3985.4,3985.3,0.07841757]
[1733566416921,5.13249961,3985.4,3985.3,0.07841757]
[1733566417124,4.97152971,3985.4,3985.3,0.07841757]
[1733566417493,6.72581807,3985.4,3985.3,0.07841757]
[1733566417690,5.70496444,3985.4,3985.3,0.07841757]
[1733566417887,7.43666129,3985.4,3985.3,0.07841757]
[1733566418119,9.53602926,3985.4,3985.3,0.07841757]
[1733566418434,7.80433241,3985.4,3985.3,0.07841757]
[1733566418617,9.53602926,3985.4,3985.3,0.07841757]
[1733566418926,5.70496444,3985.4,3985.3,0.07841757]
[1733566419230,7.43666129,3985.4,3985.3,0.07841757]
[1733566420413,5.70496444,3985.4,3985.3,0.07841757]
[1733566422415,3.54015703,3985.4,3985.3,0.07841757]
[1733566422728,5.70366218,3985.4,3985.3,0.07841757]
[1733566423530,7.27333548,3985.4,3985.3,0.07841757]
[1733566424205,0.55,3985.3,3984.3,1.08814413]
[1733566424401,4.03223705,3985.2,3984.5,1.08814413]
[1733566424591,2.16350515,3985.1,3984.7,2.84482413]
[1733566424791,0.08317586,3985.2,3984.8,0.07842168]
[1733566425016,1.0464319,3985.4,3984.9,0.07842168]
[1733566425218,0.08317586,3985.1,3985.0,0.07842168]
[1733566425535,0.08317586,3985.1,3985.0,0.07841483]
[1733566425694,1.29788037,3985.3,3985.0,0.07841483]
[1733566425893,0.08317586,3985.2,3985.1,0.07841483]
[1733566426225,1.0464319,3985.4,3985.1,0.07841483]
[1733566426424,0.08040333,3985.2,3984.7,2.84482413]
[1733566426629,1.0464319,3985.4,3984.8,0.07841655]
[1733566426925,2.1631641,3985.3,3984.9,0.07841655]
[1733566427100,1.0464319,3985.4,3985.0,0.07841655]
[1733566427101,0.08047786,3985.2,3985.0,0.07841655]
[1733566427300,1.0464319,3985.4,3985.1,0.07841655]
[1733566427623,0.94573692,3985.3,3985.2,0.07841655]
[1733566428200,2.24362019,3985.3,3985.2,0.07841655]
[1733566428692,0.94573692,3985.3,3984.7,1.08814413]
[1733566428895,0.94573692,3985.3,3984.3,0.30960231]
[1733566428896,0.08047786,3985.3,3985.0,1.08814413]
[1733566429118,1.0464319,3985.7,3985.2,1.75649]
[1733566429426,0.07940616,3985.6,3985.3,1.8348565]
[1733566429625,0.07940616,3985.6,3985.4,0.0784165]
[1733566429829,1.0464319,3985.8,3985.5,0.0784165]
[1733566430141,2.16361813,3985.7,3985.6,0.0784165]
[1733566430432,0.86544725,3985.7,3985.6,0.0784165]
[1733566432208,0.86544725,3985.7,3985.6,0.07840855]
[1733566432532,0.86551209,3985.7,3985.6,0.07840855]
[1733566434645,1.0464319,3986.0,3985.6,0.07840855]
[1733566434944,1.0464319,3986.1,3985.9,1.75618]
[1733566435145,0.86559946,3986.0,3985.9,1.75618]
[1733566435340,1.0464319,3986.2,3985.9,1.8345833]
[1733566435506,0.86552875,3986.1,3986.0,0.0784033]
[1733566436125,0.86553798,3986.1,3986.0,0.0784033]
[1733566436649,1.0464319,3986.3,3986.0,0.0784033]
[1733566436806,2.51415722,3986.2,3986.1,0.0784033]
[1733566437409,3.32075722,3986.2,3986.1,0.0784033]
[1733566437631,3.32054671,3986.2,3986.1,0.0784033]
[1733566437945,4.36697861,3986.2,3986.1,0.0784033]
[1733566438912,3.32054671,3986.2,3986.1,0.0784033]
[1733566439117,3.32054671,3986.2,3986.1,0.07840001]
[1733566439833,3.32054671,3986.2,3985.6,1.68361201]
[1733566440050,0.86534454,3986.1,3985.6,1.68361201]
[1733566440247,0.8066,3986.2,3985.6,1.68361201]
[1733566440447,0.86523487,3986.1,3985.6,1.68361201]
[1733566440746,0.8066,3986.2,3985.4,1.7564]
[1733566440951,0.86521604,3986.1,3985.4,1.7564]
[1733566441149,1.8530319,3986.2,3985.4,1.7564]
[1733566441464,0.86519102,3986.1,3985.4,1.7564]
[1733566441613,2.19843872,3986.2,3985.4,1.7564]
[1733566441946,0.86518176,3986.1,3985.4,1.7564]
[1733566442255,2.19843872,3986.2,3985.4,1.605322]
[1733566442415,0.86516435,3986.1,3985.4,1.605322]
[1733566442616,2.19843872,3986.2,3985.4,1.605322]
[1733566442818,0.86515167,3986.1,3985.3,1.08814413]
[1733566443119,2.19843872,3986.2,3985.3,2.84458413]
[1733566443318,0.86516028,3986.1,3985.4,1.7564]
[1733566443533,0.8066,3986.2,3985.4,1.7564]
[1733566443740,0.86514768,3986.1,3985.4,1.7564]
[1733566443947,0.8066,3986.2,3985.4,1.7564]
[1733566444154,0.86514217,3986.1,3985.4,1.7564]
[1733566444336,0.07704203,3986.0,3985.4,1.7564]
[1733566444526,1.8530319,3986.2,3985.4,1.7564]
[1733566444752,0.94215119,3986.1,3985.4,1.7564]
[1733566445054,0.07704203,3986.1,3985.4,1.7564]
[1733566448087,0.07704203,3986.1,3985.3,1.08814413]
[1733566449681,0.86500426,3986.0,3985.0,1.08814413]
[1733566449881,0.60261475,3986.1,3985.0,2.84472413]
[1733566449882,0.87609493,3985.9,3985.0,2.84472413]
[1733566450090,0.90745915,3985.9,3985.0,1.75658]
[1733566450270,0.87609493,3985.9,3985.0,1.75658]
[1733566450590,1.3495,3985.8,3984.7,1.75667]
[1733566450790,3.10573,3985.8,3984.7,1.75667]
[1733566450951,0.55,3985.6,3984.7,1.75667]
[1733566451372,0.7995,3985.4,3984.7,1.75667]
[1733566451779,0.7995,3985.4,3984.8,0.07840953]
[1733566452052,0.07658316,3985.3,3984.8,1.75664]
[1733566452275,0.07658316,3985.3,3985.0,1.75657]
[1733566452473,0.7995,3985.8,3985.0,1.75657]
[1733566452705,0.0764576,3985.7,3985.1,0.0784095]
[1733566453002,0.0764576,3985.7,3985.2,0.0784095]
[1733566453203,0.0764576,3985.7,3985.3,0.0784095]
[1733566453372,0.0764576,3985.7,3985.4,0.0784095]
[1733566453705,0.0764576,3985.6,3985.5,0.0784095]
[1733566455216,0.0764576,3985.6,3985.5,0.07840892]
[1733566458586,0.0764576,3985.6,3985.1,1.75654]
[1733566458894,0.0764576,3985.6,3985.2,1.83488908]
[1733566459072,0.7995,3985.8,3985.3,0.07840908]
[1733566459276,0.06665091,3985.7,3985.4,0.07840908]
[1733566459476,1.8165319,3986.1,3985.6,1.75632]
[1733566459718,0.86515164,3986.0,3985.7,0.07840908]
[1733566459920,0.7701,3986.1,3985.8,0.07840908]
[1733566460158,0.86515852,3986.0,3985.9,0.07840908]
[1733566460531,1.0464319,3986.2,3985.9,1.83459908]
[1733566460824,1.0464319,3986.3,3986.0,0.07840908]
[1733566461058,0.86520579,3986.2,3986.1,0.07840908]
[1733566461222,0.86517294,3986.2,3986.1,0.07840908]
[1733566462323,1.8165319,3986.4,3986.1,0.07840908]
[1733566462525,2.16290377,3986.3,3986.1,0.07840908]
[1733566462860,2.36886221,3986.4,3986.2,0.07840908]
[1733566463034,2.16290876,3986.3,3985.9,1.75618]
[1733566463234,1.8165319,3986.4,3986.0,0.07839919]
[1733566463459,2.16285573,3986.3,3986.0,0.07839919]
[1733566463661,1.8165319,3986.4,3986.1,0.07839919]
[1733566463864,2.16289955,3986.3,3986.2,0.07839919]
[1733566465069,2.93299955,3986.3,3986.2,0.07839919]
[1733566465580,2.93329428,3986.3,3986.2,0.07839919]
[1733566466158,2.16319428,3986.3,3986.2,0.07839919]
[1733566467443,0.86527771,3986.3,3986.2,0.07839919]
[1733566468539,2.16342756,3986.3,3986.2,0.07839919]
[1733566469038,0.86527771,3986.3,3986.2,0.07839809]
[1733566469235,2.01130445,3986.7,3986.2,0.07839809]
[1733566469236,1.0464319,3986.5,3986.4,1.75597]
[1733566469485,1.22500445,3986.7,3986.6,1.75588]
[1733566469704,2.09058167,3986.7,3986.6,1.75588]
[1733566469980,1.22500445,3986.7,3986.6,1.83427051]
[1733566470183,1.0464319,3986.9,3986.7,1.75583]